[Event "Susha Chess Blitz 2022"]
[Site "Shusha"]
[Date "2022.09.24"]
[Round "7"]
[White "Vidit, Santosh Gujrathi"]
[Black "Mamedov, Rauf"]
[Result "1/2-1/2"]
[ECO "A04"]
[WhiteElo "2710"]
[BlackElo "2646"]
[Annotator "TA"]
[PlyCount "134"]
[EventDate "2022.09.24"]
[EventType "tourn"]
[EventCountry "AZE"]
[SourceTitle "playchess.com"]
[Source "ChessBase"]
[SourceQuality "1"]
[TimeControl "180+2"]

{[%evp 23,134,48,58,38,59,43,41,46,54,46,60,55,54,39,49,44,59,66,73,72,81,70,78,4,135,126,153,100,112,104,104,62,175,31,27,27,27,39,316,335,286,211,585,8,128,105,136,22,23,0,0,0,0,0,0,0,0,-29,-12,-159,-14,-15,0,-198,-33,-36,0,0,0,0,0,0,0,0,0,0,196,199,6532,259,5622,5455,29991,29987,29983,0,0,-176,447,21,212,0,0,-37,0,-422,0,0,0,0,69,0,0,0,69,0,0,0,0,0,0,0,0]} 1. Nf3 {[%emt 0:00:01]} c5 {[%emt 0:00:01]} 2. c4 {[%emt 0:00:02]} g6 {[%emt 0:00:01]} 3. g3 {[%emt 0:00:04]} Bg7 {[%emt 0:00:01]} 4. Bg2 {[%emt 0:00:01]} Nc6 {[%emt 0:00:01]} 5. O-O {[%emt 0:00:03]} Nf6 {[%emt 0:00:02]} 6. d4 {[%emt 0:00:03]} cxd4 {[%emt 0:00:35]} 7. Nxd4 {[%emt 0:00:01]} O-O {[%emt 0:00:03]} 8. Nc3 {[%emt 0:00:01]} Nxd4 {[%emt 0:00:03]} 9. Qxd4 {[%emt 0:00:02]} d6 {[%emt 0:00:01]} 10. Qd3 {[%emt 0:00:07]} Bf5 {[%emt 0:00:08]} 11. e4 {[%emt 0:00:02]} Be6 {[%emt 0:00:02]} 12. b3 $1 {[%emt 0:00:09] 12.b3 scores better than 12.Bd2.} Nd7 {[%emt 0:00:10]} 13. Be3 {[%emt 0:00:08] A39: Symmetrical English vs ...g6: 4 Bg2 Bg7 5 Nf3 Nf6 6 0-0 0-0 7 d4.} Qa5 {[%emt 0:00:04]} 14. Bd4 {[%emt 0:00:13]} Ne5 {[%emt 0:00:23]} 15. Qd2 {[%emt 0:00:02] White is slightly better.} Rfc8 {[%emt 0:00:01][%cal Oe5c4]} 16. Rac1 {[%emt 0:00:05]} Nc6 {[%emt 0:00:31]} 17. Bxg7 {[%emt 0:00:03]} Kxg7 {[%emt 0:00:01] [#]} 18. Rfe1 $146 {[%emt 0:00:16][%cal Bf1e1,Be1e3,Be3a3][%mdl 32]} ({Predecessor:} 18. Rfd1 f6 19. Qb2 Re8 20. Nd5 Rac8 21. Kh1 b5 22. Nf4 Bd7 23. c5 Ne5 24. cxd6 Rxc1 25. Rxc1 {½-½ (40) Swager,J (2030)-Tassone,R (2163) ICCF email 2016}) 18... a6 {[%emt 0:00:04]} 19. Qb2 {[%emt 0:00:02]} Kg8 {[%emt 0:00:04]} 20. Nd5 {[%emt 0:00:08]} Bxd5 {[%emt 0:00:03]} 21. exd5 {[%emt 0:00:01]} Ne5 {[%emt 0:00:01] aiming for ...Nd3.} 22. Re3 {[%emt 0:00:06] Against Nd3} Qc5 {[%emt 0:00:14]} 23. b4 {[%emt 0:00:33]} (23. Qd2 $16) 23... Qa7 {[%emt 0:00:15]} (23... Nxc4 $11 24. bxc5 (24. Rxe7 Nxb2 25. bxc5 Nd3 $11) 24... Nxb2) 24. c5 $1 $16 {[%emt 0:00:08]} a5 {[%emt 0:00:01]} 25. Bh3 {[%emt 0:00:48]} (25. f4 Ng4 26. Ra3 (26. Rxe7 axb4 27. Qd4 dxc5 $17) 26... dxc5 27. Rxa5 Qb6 28. Raxc5 Rxc5 29. Rxc5 Qa7 $11) ({White should try} 25. a3 $1) 25... Rc7 {[%emt 0:00:30]} 26. Ra3 $36 {[%emt 0:00:24][%mdl 2048] White has strong initiative.} (26. f4 axb4 27. fxe5 Rxc5 $14) 26... Qb8 {[%emt 0:00:02]} 27. bxa5 {[%emt 0:00:06][%cal Oa5a6] And now a6! would win. White is more active.} (27. f4 {is interesting.} axb4 28. Rxa8 Nf3+ 29. Kg2) 27... Qa7 {[%emt 0:00:04]} (27... Rxc5 $14 28. Rxc5 dxc5) 28. cxd6 {[%emt 0:00:05]} (28. a6 $1 $18 {[%cal Ra6b7] Black must now prevent axb7!} bxa6 29. c6) 28... Rxc1+ $14 {[%emt 0:00:02]} 29. Qxc1 {[%emt 0:00:01]} exd6 {[%emt 0:00:00]} 30. Qc7 {[%emt 0:00:06]} Qd4 $2 {[%emt 0:00:06][%mdl 8192]} (30... h5 $1 $14) 31. Qxb7 $18 {[%emt 0:00:05]} Re8 {[%emt 0:00:07] ...Nd3 is the strong threat.} 32. Re3 {[%emt 0:00:05] Hoping for a6.} Kf8 $2 {[%emt 0:00:15]} (32... f5 33. a3 Nf3+ 34. Rxf3 Re1+ 35. Bf1 Qc4 36. Qb8+ Kg7 37. Qb2+ Kf7 38. Qb7+ Kg8 39. Qb8+ Kf7 40. Qb7+ Kg8) 33. Qb1 $2 {[%emt 0:00:03]} (33. a6 $18) 33... Qa4 {[%emt 0:00:04]} (33... Qxd5 $11 34. Bg2 Qxa5) 34. Qb2 {[%emt 0:00:03][%cal Oa5a6]} Qxa5 35. Bg2 {[%emt 0:00:01]} (35. f4 $1 $16 {[%cal Rf4e5]} Qc5 36. Qc3 Nf3+ 37. Kf2 Qxc3 38. Rxc3) 35... Rc8 $11 {[%emt 0:00:03]} 36. f4 {[%emt 0:00:02]} Qa7 {[%emt 0:00:01]} (36... Qc5 $5 37. Qa3 $8 Qc1+ 38. Bf1 (38. Qxc1 Rxc1+ 39. Bf1 Ng4 $11) 38... Ng4 39. Qxc1 Rxc1 $11) 37. Qf2 {[%emt 0:00:01]} Rc2 $1 {[%emt 0:00:05]} 38. Qxc2 {[%emt 0:00:02]} Qxe3+ {[%emt 0:00:01][%mdl 4096] Endgame KQB-KQN} 39. Qf2 {[%emt 0:00:02]} Qc1+ {[%emt 0:00:01]} 40. Bf1 Ng4 {[%emt 0:00:02]} 41. Qd4 {[%emt 0:00:03]} (41. Qf3 $11 Qc5+ 42. Kh1) 41... Ne3 {[%emt 0:00:04]} ({Black should play} 41... Qc2 $1 $17 {[%csl Gg4][%cal Rc2h2]} 42. Bg2 Qb1+ 43. Bf1 Qxa2) 42. Qd3 {[%emt 0:00:02]} Qc5 {[%emt 0:00:04] ( -> ...Ng4+)} 43. Kf2 $2 {[%emt 0:00:03]} (43. Qb5 $11 {and White is okay.}) 43... Nxd5+ $2 {[%emt 0:00:01]} (43... Ng4+ $19 44. Kf3 f5) 44. Kf3 $15 {[%emt 0:00:01]} (44. Kg2 Ne3+ 45. Kh1 d5 $17) 44... Nb4 {[%emt 0:00:01]} 45. Qc4 {[%emt 0:00:02]} Qb6 {[%emt 0:00:02]} 46. Qc8+ {[%emt 0:00:02]} Kg7 {[%emt 0:00:01]} 47. Qc3+ {[%emt 0:00:01]} Kg8 {[%emt 0:00:03]} 48. Qc8+ {[%emt 0:00:01]} Kg7 {[%emt 0:00:01]} 49. Qc3+ {[%emt 0:00:01]} Kh6 $2 {[%emt 0:00:02]} (49... f6 $11 {and Black has nothing to worry.}) 50. g4 $1 $18 {[%emt 0:00:05][%cal Bg3g4,Bg4g5][%mdl 32]} Nd5 $2 {[%emt 0:00:04]} (50... Nxa2 51. g5+ (51. Qf6 Qc6+ 52. Kf2 Qc5+ 53. Kg2 Qc2+ 54. Kg1 Qc5+ 55. Kg2 Qc2+ 56. Kg1 Qc5+ 57. Kg2 $11) 51... Kh5) 51. g5+ $1 {[%emt 0:00:01]} Kh5 {[%emt 0:00:00]} 52. Qd2 {[%emt 0:00:02] Intending Be2 and mate.} Ne7 {[%emt 0:00:05]} 53. Be2 {[%emt 0:00:04][%cal Rf3g3]} Qg1 {[%emt 0:00:03] [#]} 54. Ke4+ $2 {[%emt 0:00:04]} (54. Qc1 $3 {[%mdl 512] mates} Qg4+ 55. Kf2 Qxe2+ 56. Kxe2 Nf5 57. a4 Kg4 58. a5 Nd4+ 59. Ke3 Nf5+ 60. Ke4 d5+ 61. Kxd5) 54... Kh4 $11 {[%emt 0:00:01]} 55. Qe3 $2 {[%emt 0:00:02]} (55. a4 $11) 55... Qg2+ $4 {[%emt 0:00:03][%mdl 8192]} (55... Qb1+ $19 56. Kf3 Qh1+ 57. Kf2 Qxh2+ 58. Ke1 Nd5) 56. Kd3 $2 {[%emt 0:00:01]} ({White has to play} 56. Qf3 $18 Qg1 57. Qg3+ Qxg3 58. hxg3+ Kxg3 59. Bc4) 56... Nf5 $2 {[%emt 0:00:02] [#]} (56... Nd5 $11 57. Qd4 Nc7) 57. Qe4 $2 {[%emt 0:00:02]} (57. Qf3 $1 $18 {[%cal Rf3g2]} Qg1 58. Bd1) 57... Qf2 {[%emt 0:00:03]} 58. a4 {[%emt 0:00:02]} Qc5 {[%emt 0:00:01] Threatens to win with ...d5.} (58... d5 $5 59. Qe5 Qxh2 $17) 59. Qf3 {[%emt 0:00:02][%mdl 8192] [#]} (59. Bd1 $11 {and White stays safe.}) 59... Qa3+ $2 {[%emt 0:00:01]} (59... Qg1 $2 60. Kd2 $18) (59... Qd4+ $1 $19 60. Kc2 Qxa4+ 61. Kc1 Qa1+ 62. Kd2 Qa5+ 63. Kc1 Qe1+ 64. Kb2 Qg1) 60. Kd2 {[%emt 0:00:02][%csl Ge2][%cal Rf3g4]} Qb4+ {[%emt 0:00:01]} 61. Kc1 {[%emt 0:00:01][%csl Ge2][%cal Rf3g4]} Qc5+ {[%emt 0:00:01]} (61... Qe1+ $1 $11 62. Kb2 Qd2+ 63. Ka3 Qc1+ 64. Ka2 Qd2+ 65. Kb1 Qe1+ 66. Kb2 (66. Ka2 Qd2+ 67. Ka3 Qc1+ 68. Ka2 Qd2+ $11) 66... Qb4+ 67. Kc1 Qe1+ 68. Kb2) 62. Kb2 {[%emt 0:00:01]} (62. Kd1 $1 $14 Ne3+ 63. Kd2 (63. Ke1 Ng2+ 64. Kf1 Ne3+ 65. Kg1 Nd5+ 66. Kh1 Qc1+ 67. Bf1 Qxf4 $11) 63... Qd4+ 64. Ke1 Nc2+ 65. Kf1 Ne3+ 66. Kg1 Nd5+ 67. Kh1 Qxf4 68. Qxd5 Qxa4 69. Qf3 (69. Qxf7 Qe4+ 70. Qf3 Qxf3+ 71. Bxf3 Kxg5 $16) 69... Kxg5 70. Qxf7) 62... Qb4+ {[%emt 0:00:01]} 63. Kc1 $1 {[%emt 0:00:02][%csl Ge2][%cal Rf3g4]} Qc5+ {[%emt 0:00:02]} (63... Qe1+ $11 64. Kb2 Qd2+ 65. Ka3 Qc1+ 66. Ka2 Qd2+ 67. Kb1 Qe1+ 68. Kb2 (68. Ka2 Qd2+ 69. Ka3 Qc1+ 70. Ka2 Qd2+ $11) 68... Qb4+ 69. Kc1) 64. Kb2 {[%emt 0:00:02]} (64. Kd1 $1 $14 Ne3+ 65. Kd2 (65. Ke1 Ng2+ 66. Qxg2 Qb4+ 67. Kd1 Qxa4+ 68. Kd2 Qb4+ 69. Ke3 Qc5+ 70. Kd3 Qa3+ 71. Kc4 Qa4+ 72. Kd3 Qa3+ 73. Kd4 Qc5+ 74. Kd3 Qa3+ $11) 65... Qd4+ 66. Ke1 Nc2+ 67. Kf1 Ne3+ 68. Kg1 Nd5+ 69. Kh1 Qxf4 70. Qxd5 Qxa4 71. Qf3 (71. Qxf7 Qe4+ 72. Qf3 Qxf3+ 73. Bxf3 Kxg5 $11) 71... Kxg5 72. Qxf7) 64... Qb4+ {[%emt 0:00:02] The position is equal.} 65. Kc1 $1 {[%emt 0:00:01][%csl Ge2][%cal Rf3g4]} Qe1+ {[%emt 0:00:02]} 66. Kb2 {[%emt 0:00:02][%csl Ge2][%cal Rf3g4]} Qd2+ {[%emt 0:00:01]} 67. Kb1 {[%emt 0:00:01][%csl Ge2][%cal Rf3g4] Dancing on a razor blade.} Qb4+ {[%emt 0:00:03] Weighted Error Value: White=0.78/Black=0.81} 1/2-1/2

[Event "Susha Chess Blitz 2022"]
[Site "Shusha"]
[Date "2022.09.24"]
[Round "7"]
[White "Yilmaz, Mustafa"]
[Black "Kasimdzhanov, Rustam"]
[Result "1/2-1/2"]
[ECO "D32"]
[WhiteElo "2633"]
[BlackElo "2670"]
[Annotator "TA"]
[PlyCount "108"]
[EventDate "2022.09.24"]
[EventType "tourn"]
[EventCountry "AZE"]
[SourceTitle "playchess.com"]
[Source "ChessBase"]
[SourceQuality "1"]
[TimeControl "180+2"]

{[%evp 12,108,40,49,45,61,45,35,44,12,10,17,19,14,20,15,14,16,12,15,9,15,15,17,23,25,48,25,36,21,10,7,50,41,38,21,118,119,119,111,118,108,126,116,117,108,114,116,110,118,116,117,118,108,132,125,125,121,119,109,158,124,140,129,156,112,161,161,161,150,173,145,126,10,14,10,17,20,40,8,8,0,0,0,0,0,0,0,0,0,0,0,0,0,0,0,0,0,0]} 1. d4 {[%emt 0:00:01]} d5 {[%emt 0:00:00]} 2. c4 {[%emt 0:00:01]} e6 {[%emt 0:00:01][%cal Be7e6,Be6d5,Bd5d4][%mdl 32]} 3. Nf3 {[%emt 0:00:01]} c5 {[%emt 0:00:01]} 4. cxd5 {[%emt 0:00:02]} exd5 {[%emt 0:00:01]} 5. Nc3 {[%emt 0:00:04]} Nc6 {[%emt 0:00:01]} 6. dxc5 {[%emt 0:00:15]} d4 {[%emt 0:00:01]} 7. Na4 {[%emt 0:00:01]} Bxc5 {[%emt 0:00:02][%mdl 64] Decoy. D32: Tarrasch Defence: Sidelines and lines without g3.} 8. Nxc5 {[%emt 0:00:01] And now Nb3 would win.} Qa5+ {[%emt 0:00:01]} 9. Qd2 {[%emt 0:00:24]} Qxc5 {[%emt 0:00:01] White is slightly better.} 10. e3 $1 {[%emt 0:00:02][%mdl 4] is now more promising than 10.a3.} (10. a3 $5 {[%cal Rb2b4]}) 10... dxe3 {[%emt 0:00:03]} 11. Qxe3+ {[%emt 0:00:01]} Qxe3+ {[%emt 0:00:01]} 12. Bxe3 {[%emt 0:00:01]} Nf6 {[%emt 0:00:07]} 13. Bc4 {[%emt 0:00:02]} O-O {[%emt 0:00:02]} 14. O-O {[%emt 0:00:02][%cal Bh1f1,Bf1c1,Bc1c7][%mdl 32]} Re8 {[%emt 0:00:25] [#]} 15. Rfc1 $146 {[%emt 0:00:08]} ({Predecessor:} 15. Rac1 Be6 16. Bxe6 Rxe6 17. Nd4 Nxd4 18. Bxd4 b6 19. Bxf6 Rxf6 20. Rfd1 g6 21. Kf1 {½-½ (40) Petrov,N (2550)-Artemiev,V (2709) Sochi 2021}) 15... Be6 {[%emt 0:00:04]} 16. Bb5 {[%emt 0:00:03]} Bd7 {[%emt 0:00:15]} 17. h3 {[%emt 0:00:15]} Ne5 {[%emt 0:00:20]} 18. Bxd7 {[%emt 0:00:15]} Nexd7 {[%emt 0:00:19]} 19. Rc7 {[%emt 0:00:05]} b6 {[%emt 0:00:02]} 20. Rd1 {[%emt 0:00:02]} Nf8 {[%emt 0:00:03]} 21. Ng5 {[%emt 0:00:27]} Ne6 {[%emt 0:00:10]} 22. Nxe6 {[%emt 0:00:10]} Rxe6 {[%emt 0:00:01]} 23. Rdc1 {[%emt 0:00:51]} Nd5 {[%emt 0:00:17] [#]} (23... Kf8 $11) 24. Rxa7 $3 $16 {[%emt 0:00:14][%mdl 512]} Rae8 {[%emt 0:00:09]} 25. Bd2 {[%emt 0:00:10] White is more active.} Re2 {[%emt 0:00:03]} 26. Rd1 {[%emt 0:00:01]} (26. Rc2 {with more complications.} Nb4 27. Rc4 Rxd2 28. Re7) 26... h6 {[%emt 0:00:13]} 27. Rd7 {[%emt 0:00:02]} Nf6 {[%emt 0:00:06]} 28. Rd3 {[%emt 0:00:05]} Ne4 {[%emt 0:00:07] [#]} 29. Re3 $1 {[%emt 0:00:05]} Nxd2 {[%emt 0:00:31]} 30. Rxe8+ {[%emt 0:00:00][%mdl 64] Deflection} Rxe8 {[%emt 0:00:01]} 31. Rxd2 {[%emt 0:00:01][%mdl 4096] Endgame KR-KR} b5 {[%emt 0:00:04]} 32. Rd4 {[%emt 0:00:05]} g5 {[%emt 0:00:21]} 33. Rb4 {[%emt 0:00:04]} Re5 {[%emt 0:00:01]} 34. Kf1 {[%emt 0:00:05]} Kg7 {[%emt 0:00:02]} 35. Rb3 {[%emt 0:00:01]} f5 {[%emt 0:00:03]} (35... Kg6 $142) 36. Re3 {[%emt 0:00:02]} Rc5 {[%emt 0:00:01]} 37. Rc3 {[%emt 0:00:02] Prevents Rc1+.} Re5 {[%emt 0:00:02]} 38. Rc2 {[%emt 0:00:01]} Kf6 {[%emt 0:00:02]} (38... b4 $16 {keeps fighting.}) 39. Rc6+ $18 {[%emt 0:00:01]} Kg7 {[%emt 0:00:01]} 40. a3 {[%emt 0:00:01]} h5 {[%emt 0:00:04]} 41. b4 {[%emt 0:00:03]} f4 {[%emt 0:00:12]} 42. f3 {[%emt 0:00:03]} (42. Rd6 $16) 42... Re3 $11 {[%emt 0:00:02]} 43. Rc5 {[%emt 0:00:01]} Kf6 {[%emt 0:00:00]} 44. Rxb5 {[%emt 0:00:02] Strongly threatening a4.} Rxa3 {[%emt 0:00:01]} 45. h4 {[%emt 0:00:01]} g4 {[%emt 0:00:02] The position is equal.} ({Resist} 45... Ra1+ 46. Ke2 gxh4 47. Rxh5 $14) 46. fxg4 {[%emt 0:00:06]} hxg4 {[%emt 0:00:01]} 47. h5 {[%emt 0:00:01]} Ra1+ {[%emt 0:00:01]} 48. Ke2 {[%emt 0:00:01]} Ra2+ {[%emt 0:00:02]} 49. Kf1 {[%emt 0:00:01]} g3 {[%emt 0:00:04]} 50. h6 {[%emt 0:00:03] Black must now prevent Rh5.} Kg6 {[%emt 0:00:01] Inhibits Rh5.} 51. Rb6+ {[%emt 0:00:02]} Kh7 {[%emt 0:00:01]} 52. b5 {[%emt 0:00:01]} Rf2+ {[%emt 0:00:02]} 53. Kg1 {[%emt 0:00:01]} Rb2 {[%emt 0:00:02][%cal Rb2b1]} 54. Kf1 {[%emt 0:00:01]} Rf2+ {[%emt 0:00:07] Black escapes into a draw.  Weighted Error Value: White=0.11 (very precise) /Black=0.11 (very precise)} 1/2-1/2

[Event "Susha Chess Blitz 2022"]
[Site "Shusha"]
[Date "2022.09.24"]
[Round "8"]
[White "Mamedyarov, Shakhriyar"]
[Black "Maghsoodloo, Parham"]
[Result "1-0"]
[ECO "E10"]
[WhiteElo "2757"]
[BlackElo "2721"]
[Annotator "TA"]
[PlyCount "108"]
[EventDate "2022.09.24"]
[EventType "tourn"]
[EventCountry "AZE"]
[SourceTitle "playchess.com"]
[Source "ChessBase"]
[SourceQuality "1"]
[TimeControl "180+2"]

{[%evp 9,108,14,11,13,26,16,28,19,19,0,8,17,11,-59,-53,-57,-61,-90,-87,-73,-67,-72,-76,-60,-43,-41,-38,-43,-50,-39,-22,-29,-10,-18,-9,-17,-15,-19,0,0,0,0,0,0,0,0,0,0,0,-9,0,0,0,0,0,0,8,7,6,0,0,0,0,0,19,10,94,98,104,109,323,319,483,452,491,462,487,347,483,481,712,615,671,704,705,550,977,950,1983,1709,29981,29982,29982,29983,29983,29984,29984,29985,29985,29986,29989]} 1. d4 {[%emt 0:00:00]} Nf6 {[%emt 0:00:01]} 2. c4 {[%emt 0:00:02]} e6 {[%emt 0:00:02]} 3. Nf3 {[%emt 0:00:01]} h6 {[%emt 0:00:01]} 4. Nc3 {[%emt 0:00:04]} Bb4 {[%emt 0:00:01]} 5. Qc2 {[%emt 0:00:10]} c5 {[%emt 0:00:01]} 6. dxc5 {[%emt 0:00:02] E10: Blumenfeld Gambit.} Na6 {[%emt 0:00:01][%cal Bb8a6,Ba6c5,Bc5e4][%mdl 32]} 7. a3 {[%emt 0:00:01]} Bxc3+ {[%emt 0:00:05]} 8. Qxc3 {[%emt 0:00:01] White has an edge.} Nxc5 {[%emt 0:00:02]} 9. b4 {[%emt 0:00:08]} Nce4 {[%emt 0:00:03] [#]} 10. Qb2 $146 {[%emt 0:00:07]} ({Predecessor:} 10. Qc2 d5 11. cxd5 Qxd5 12. Bb2 Bd7 13. Rd1 Qf5 14. Bxf6 Nxf6 15. Qxf5 exf5 16. e3 {0-1 (67) Vasilevich,T (2360)-Shafigullina,Z (2150) Sochi 2018}) 10... O-O {[%emt 0:00:12]} 11. h3 {[%emt 0:00:11]} ({White should try} 11. Ne5 $11) 11... b6 $15 {[%emt 0:00:08]} 12. e3 {[%emt 0:00:06]} Ba6 {[%emt 0:00:08]} 13. Qd4 {[%emt 0:00:19]} Rc8 {[%emt 0:00:07]} 14. Bb2 {[%emt 0:00:03]} d6 {[%emt 0:00:05]} 15. Rc1 {[%emt 0:00:02]} Qe7 {[%emt 0:00:29]} 16. Be2 {[%emt 0:00:10]} Rc7 {[%emt 0:00:02]} 17. O-O {[%emt 0:00:27]} Rfc8 {[%emt 0:00:01]} 18. b5 $1 {[%emt 0:00:21]} Bb7 {[%emt 0:00:01]} 19. Rfd1 {[%emt 0:00:14]} Ne8 {[%emt 0:00:03]} 20. Nd2 {[%emt 0:00:12]} e5 {[%emt 0:00:06]} 21. Qd3 {[%emt 0:00:01]} Nc5 {[%emt 0:00:06]} 22. Qc2 {[%emt 0:00:04]} Nf6 {[%emt 0:00:04]} 23. Bc3 {[%emt 0:00:11]} d5 {[%emt 0:00:16][%cal Od5d4]} 24. Bb4 {[%emt 0:00:03]} Qe6 {[%emt 0:00:05]} 25. cxd5 {[%emt 0:00:05]} Bxd5 {[%emt 0:00:04][%cal Oc5d3]} 26. Qb1 {[%emt 0:00:10] Inhibits Nd3.} e4 {[%emt 0:00:28]} 27. Bxc5 {[%emt 0:00:08]} Rxc5 {[%emt 0:00:01]} 28. Rxc5 {[%emt 0:00:04]} Rxc5 {[%emt 0:00:01]} 29. Rc1 {[%emt 0:00:02]} Qc8 {[%emt 0:00:00]} 30. Rxc5 {[%emt 0:00:02]} Qxc5 {[%emt 0:00:01]} 31. Qb2 {[%emt 0:00:01]} h5 {[%emt 0:00:12]} 32. Nf1 {[%emt 0:00:08]} Bc4 {[%emt 0:00:11]} 33. Bxc4 {[%emt 0:00:03]} Qxc4 $11 {[%emt 0:00:01][%mdl 4096] Endgame KQN-KQN} 34. Ng3 {[%emt 0:00:01]} Qd5 {[%emt 0:00:01]} 35. Ne2 {[%emt 0:00:05]} Nd7 {[%emt 0:00:14]} 36. Nd4 {[%emt 0:00:01]} Ne5 {[%emt 0:00:11]} 37. Qb4 {[%emt 0:00:01]} Qc5 {[%emt 0:00:13] Prevents Qe7.} (37... Nd3 $11 38. Qe7 Kh7) 38. Qxc5 $1 $16 {[%emt 0:00:13]} bxc5 {[%emt 0:00:02] KN-KN} 39. Nc6 {[%emt 0:00:00]} c4 $2 {[%emt 0:00:00] [#] A mistake that costs the game.} 40. Kf1 $1 $18 {[%emt 0:00:01]} (40. Nxe5 $2 c3 41. Kh2 c2 $19) 40... c3 {[%emt 0:00:13]} (40... Nd3 {is a better defense.} 41. Ke2 (41. Nxa7 $2 c3 $19) 41... Kf8) 41. Ke2 {[%emt 0:00:02]} ({Wrong is} 41. Nxe5 $2 c2 42. g4 c1=Q+ $19) 41... Nd3 {[%emt 0:00:01] [#] ( -> ...c2)} 42. Kd1 {[%emt 0:00:01]} Kf8 {[%emt 0:00:11]} 43. Nxa7 {[%emt 0:00:03]} Ke8 {[%emt 0:00:02]} 44. Kc2 {[%emt 0:00:01]} Nxf2 {[%emt 0:00:04]} (44... Kd7 $142 45. a4 Kd6) 45. Kxc3 {[%emt 0:00:02] Threatens to win with b6.} Kd7 {[%emt 0:00:03]} 46. a4 {[%emt 0:00:01][%cal Ba3a4,Ba4a5,Ba5a6,Ba6a7][%mdl 32]} f5 {[%emt 0:00:02]} 47. Nc6 {[%emt 0:00:11]} g5 {[%emt 0:00:03]} 48. a5 {[%emt 0:00:01] a6 is the strong threat.} f4 {[%emt 0:00:01]} 49. exf4 {[%emt 0:00:01]} gxf4 {[%emt 0:00:00]} 50. a6 {[%emt 0:00:02] White mates.} Kc7 {[%emt 0:00:01]} 51. a7 {[%emt 0:00:02]} Kb7 {[%emt 0:00:01] [#]} 52. b6 $1 {[%emt 0:00:01]} e3 {[%emt 0:00:04]} (52... f3 53. Nd8+) 53. Nd8+ {[%emt 0:00:03]} Ka8 {[%emt 0:00:01]} 54. Ne6 {[%emt 0:00:01]} Ne4+ {[%emt 0:00:04] Weighted Error Value: White=0.08 (flawless) /Black=0.36} 1-0

[Event "Susha Chess Blitz 2022"]
[Site "Shusha"]
[Date "2022.09.24"]
[Round "8"]
[White "Kasimdzhanov, Rustam"]
[Black "Yilmaz, Mustafa"]
[Result "0-1"]
[ECO "A08"]
[WhiteElo "2670"]
[BlackElo "2633"]
[Annotator "TA"]
[PlyCount "78"]
[EventDate "2022.09.24"]
[EventType "tourn"]
[EventCountry "AZE"]
[SourceTitle "playchess.com"]
[Source "ChessBase"]
[SourceQuality "1"]
[TimeControl "180+2"]

{[%evp 21,78,-33,-12,-25,0,-22,-5,-23,0,0,0,0,-11,-37,-33,-34,-35,-44,29,-41,16,19,21,0,0,0,33,0,14,16,9,14,19,14,165,166,152,45,77,75,99,52,145,19,10,12,21,20,108,92,104,119,119,0,0,0,0,0,0]} 1. Nf3 {[%emt 0:00:01]} d5 {[%emt 0:00:01]} 2. g3 {[%emt 0:00:01]} c5 {[%emt 0:00:09]} 3. Bg2 {[%emt 0:00:01]} Nf6 {[%emt 0:00:01]} 4. O-O {[%emt 0:00:01]} e6 {[%emt 0:00:01]} 5. d3 {[%emt 0:00:03]} Nc6 {[%emt 0:00:02]} 6. Nbd2 {[%emt 0:00:02]} Be7 {[%emt 0:00:01]} 7. e4 {[%emt 0:00:00]} b6 {[%emt 0:00:20]} 8. Re1 {[%emt 0:00:04]} Bb7 {[%emt 0:00:04]} 9. e5 {[%emt 0:00:05]} Nd7 {[%emt 0:00:02]} 10. Nf1 {[%emt 0:00:03]} Qc7 {[%emt 0:00:05]} 11. Qe2 {[%emt 0:00:03]} O-O {[%emt 0:00:13]} 12. Bf4 {[%emt 0:00:06] C00: French: Unusual White 2nd moves.} Rae8 {[%emt 0:00:11]} 13. h4 {[%emt 0:00:05]} Qd8 {[%emt 0:00:10]} 14. Bh3 {[%emt 0:00:27] [#]} f5 $146 {[%emt 0:00:23]} ({Predecessor:} 14... h6 15. N1h2 d4 16. c4 Qa8 17. h5 a6 18. Nd2 Nb4 19. Rec1 Bd8 20. Ng4 Bg5 {1-0 (55) Isha,S (2029)-Bhavik,A (1611) Mumbai 2018}) 15. exf6 {[%emt 0:01:02]} Bxf6 {[%emt 0:00:01]} 16. Bd6 {[%emt 0:00:48]} Bxb2 {[%emt 0:00:27] Hoping for ...Rxf3.} 17. Bxf8 {[%emt 0:00:19]} Nxf8 {[%emt 0:00:54]} 18. Rab1 {[%emt 0:00:04]} Bc3 {[%emt 0:00:01][%mdl 1024] Black has compensation.} 19. N1d2 {[%emt 0:00:07]} Bf6 {[%emt 0:00:17]} ({Black should play} 19... Qf6 $15) 20. a3 {[%emt 0:00:10]} (20. c4 $11) 20... Qd6 {[%emt 0:00:05]} (20... Bc3 $15) 21. c4 $36 {[%emt 0:00:01][%mdl 2048] White has some pressure.} Re7 {[%emt 0:00:04]} 22. Rbd1 {[%emt 0:00:04]} h6 {[%emt 0:00:05]} 23. Bg2 {[%emt 0:00:02]} Rf7 {[%emt 0:00:03]} 24. Nf1 {[%emt 0:00:01]} Nd4 {[%emt 0:00:03]} 25. Nxd4 {[%emt 0:00:02]} Bxd4 {[%emt 0:00:01] This bishop pair is nice.} 26. Ne3 {[%emt 0:00:01]} Ng6 {[%emt 0:00:03]} 27. Kh1 {[%emt 0:00:03]} Ne5 $2 {[%emt 0:00:03]} (27... Bc6 $11 {and Black is okay.}) 28. f4 $18 {[%emt 0:00:02]} Nd7 {[%emt 0:00:02]} 29. Ng4 {[%emt 0:00:02]} (29. Nc2 $16) 29... Nf6 {[%emt 0:00:04]} 30. Ne5 {[%emt 0:00:05]} Re7 {[%emt 0:00:03][%cal Og7g5]} 31. Rf1 {[%emt 0:00:04]} (31. Ng6 $1 $16 {[%cal Rg6e7]} Re8 32. g4) 31... dxc4 {[%emt 0:00:01]} ({Better is} 31... Qb8 $14) 32. Nxc4 {[%emt 0:00:02]} (32. Bxb7 $16 Rxb7 33. dxc4) 32... Bxg2+ {[%emt 0:00:02]} 33. Qxg2 {[%emt 0:00:01]} Qd5 {[%emt 0:00:00]} 34. Rde1 {[%emt 0:00:03]} Rc7 {[%emt 0:00:03]} (34... b5 $11 {remains equal.} 35. Ne5 Rc7) 35. Qxd5 $16 {[%emt 0:00:03]} exd5 {[%emt 0:00:01] [#]} 36. Nd6 {[%emt 0:00:01]} a6 {[%emt 0:00:04] [#] Inhibits Nb5.} 37. Kg2 {[%emt 0:00:02]} (37. Nf5 $1 $16) 37... c4 $11 {[%emt 0:00:01] The position is equal.} 38. dxc4 {[%emt 0:00:03]} dxc4 {[%emt 0:00:00]} 39. a4 {[%emt 0:00:02]} Bb2 {[%emt 0:00:01][%mdl 32768] Inhibits Rc1.  Weighted Error Value: White=0.24 (precise) /Black=0.33. Loss on time!?} 0-1